bitfinex/quotes_BTCUSD_20250703
["timestamp","ask_amount","ask_price","bid_price","bid_amount"]
[1751501791513,0.0012,109080.0,109070.0,1.16191559]
[1751501791891,0.1886,109100.0,109090.0,0.24483406]
[1751501792094,0.1886,109100.0,109090.0,0.43447426]
[1751501793198,0.1886,109100.0,109090.0,0.36321643]
[1751501793426,0.26708,109110.0,109100.0,0.21081473]
[1751501793673,0.26708,109110.0,109100.0,0.31487115]
[1751501793674,0.45564,109110.0,109100.0,0.31487115]
[1751501793892,0.45564,109110.0,109100.0,0.32403654]
[1751501794111,0.45564,109110.0,109100.0,0.32403663]
[1751501794574,0.45564,109110.0,109100.0,0.31487115]
[1751501794999,0.45564,109110.0,109100.0,0.32403663]
[1751501795207,0.45564,109110.0,109100.0,0.33320194]
[1751501795428,0.45564,109110.0,109100.0,0.33320202]
[1751501795642,0.45564,109110.0,109100.0,0.32403663]
[1751501796081,0.45564,109110.0,109100.0,0.31487115]
[1751501796284,0.45564,109110.0,109100.0,0.30757214]
[1751501796721,0.45564,109110.0,109100.0,0.32690335]
[1751501797157,0.45564,109110.0,109100.0,0.31773787]
[1751501797371,0.45564,109110.0,109100.0,0.32688763]
[1751501798078,0.45564,109110.0,109100.0,0.31772198]
[1751501798281,0.45564,109110.0,109100.0,0.32688763]
[1751501798518,0.45564,109110.0,109100.0,0.31772198]
[1751501798731,0.45564,109110.0,109100.0,0.30970938]
[1751501798934,0.45564,109110.0,109100.0,0.31887486]
[1751501799133,0.45564,109110.0,109100.0,0.30970938]
[1751501799345,0.45564,109110.0,109100.0,0.32804017]
[1751501799549,0.45564,109110.0,109100.0,0.36154017]
[1751501799721,0.45764,109110.0,109100.0,0.36154017]
[1751501799930,0.4576,109110.0,109100.0,0.36154025]
[1751501800160,0.4576,109110.0,109100.0,0.35237486]
[1751501801279,0.4576,109110.0,109100.0,0.36153975]
[1751501801665,0.4576,109110.0,109100.0,0.33404357]
[1751501802096,0.4576,109110.0,109100.0,0.33404366]
[1751501802950,0.4576,109110.0,109100.0,0.29137801]
[1751501803369,0.4576,109110.0,109100.0,0.28494977]
[1751501803574,0.4576,109110.0,109100.0,0.29137377]
[1751501804390,0.4576,109110.0,109100.0,0.29137394]
[1751501804604,0.4576,109110.0,109100.0,0.30053975]
[1751501804809,0.4576,109110.0,109100.0,0.31887113]
[1751501805020,0.4576,109110.0,109100.0,0.30970548]
[1751501805224,0.4576,109110.0,109100.0,0.31887113]
[1751501805396,0.4576,109110.0,109100.0,0.32803669]
[1751501805721,0.4576,109110.0,109100.0,0.30970523]
[1751501805965,0.4576,109110.0,109100.0,0.3280361]
[1751501806177,0.4576,109110.0,109100.0,0.30970498]
[1751501806593,0.4576,109110.0,109100.0,0.30970512]
[1751501806792,0.4576,109110.0,109100.0,0.30053956]
[1751501808174,0.4576,109110.0,109100.0,0.29137391]
[1751501808378,0.4576,109110.0,109100.0,0.30053956]
[1751501811081,0.26908,109110.0,109100.0,0.30970512]
[1751501811316,0.45756,109110.0,109100.0,0.30054345]
[1751501811532,0.45756,109110.0,109100.0,0.30970901]
[1751501811737,0.45756,109110.0,109100.0,0.32803988]
[1751501811959,0.26908,109110.0,109100.0,0.32803946]
[1751501812172,0.45756,109110.0,109100.0,0.32586902]
[1751501812386,0.45752,109110.0,109100.0,0.4186291]
[1751501812627,0.45752,109110.0,109100.0,0.4186344]
[1751501813935,0.22252,109110.0,109100.0,0.4186344]
[1751501814135,0.45752,109110.0,109100.0,0.4186344]
[1751501815256,0.45752,109110.0,109100.0,0.36373496]
[1751501815683,0.45752,109110.0,109100.0,0.36374171]
[1751501816695,0.45748,109110.0,109100.0,0.36374171]
[1751501817098,0.45748,109110.0,109100.0,0.43699954]
[1751501817717,0.22252,109110.0,109100.0,0.43699954]
[1751501817884,0.45748,109110.0,109100.0,0.43699954]
[1751501820734,0.45748,109110.0,109100.0,0.40259954]
[1751501821609,0.22252,109110.0,109100.0,0.40259954]
[1751501821759,0.45748,109110.0,109100.0,0.40259954]
[1751501822573,0.45748,109110.0,109100.0,0.38426884]
[1751501822776,0.45748,109110.0,109100.0,0.39343415]
[1751501823191,0.45748,109110.0,109100.0,0.38426884]
[1751501823630,0.45748,109110.0,109100.0,0.39343423]
[1751501823863,0.45748,109110.0,109100.0,0.40261148]
[1751501824081,0.45748,109110.0,109100.0,0.38428078]
[1751501824292,0.45748,109110.0,109100.0,0.39344617]
[1751501824501,0.45748,109110.0,109100.0,0.38428078]
[1751501824708,0.45748,109110.0,109100.0,0.39344617]
[1751501825791,0.45748,109110.0,109100.0,0.40261148]
[1751501826238,0.45744,109110.0,109100.0,0.40261148]
[1751501826875,0.45744,109110.0,109100.0,0.3751153]
[1751501827081,0.45744,109110.0,109100.0,0.38428078]
[1751501827297,0.45744,109110.0,109100.0,0.40261148]
[1751501827701,0.45744,109110.0,109100.0,0.39344617]
[1751501827890,0.45744,109110.0,109100.0,0.38428078]
[1751501828302,0.45744,109110.0,109100.0,0.37511564]
[1751501828506,0.45744,109110.0,109100.0,0.3842812]
[1751501828718,0.23712,109110.0,109100.0,0.3842812]
[1751501829173,0.23712,109110.0,109100.0,0.36594999]
[1751501829360,0.23712,109110.0,109100.0,0.36594957]
[1751501829569,0.23712,109110.0,109100.0,0.17346604]
[1751501829775,0.25462,109110.0,109100.0,0.17346604]
[1751501829969,0.27182,109110.0,109100.0,0.17346647]
[1751501832388,0.28098439,109110.0,109100.0,0.08070639]
[1751501832607,0.29014894,109110.0,109100.0,0.08070639]
[1751501833641,0.28098439,109110.0,109100.0,0.08070639]
[1751501834251,0.2809843,109110.0,109100.0,0.08070639]
[1751501834826,0.29014869,109110.0,109100.0,0.08070639]
[1751501835882,0.29014869,109110.0,109100.0,0.07425783]
[1751501836049,0.29014869,109110.0,109100.0,0.08070701]
[1751501839249,0.2809843,109110.0,109100.0,0.08070701]
[1751501839864,0.29014885,109110.0,109100.0,0.08070701]
[1751501840078,0.29014877,109110.0,109100.0,0.08070701]
[1751501840504,0.2809843,109110.0,109100.0,0.08070701]
[1751501840912,0.29014877,109110.0,109100.0,0.08070701]
[1751501841118,0.2809843,109110.0,109100.0,0.08070701]
[1751501842380,0.29931366,109110.0,109100.0,0.08070701]
[1751501842580,0.30847863,109110.0,109100.0,0.08070701]
[1751501842832,0.30847863,109110.0,109100.0,0.00744918]
[1751501843646,0.47345103,109110.0,109100.0,0.06248004]
[1751501844427,0.47345103,109110.0,109100.0,0.09915799]
[1751501848429,0.29014978,109110.0,109100.0,0.09915799]
[1751501848574,0.29931433,109110.0,109100.0,0.09915799]
[1751501850254,0.09258455,109110.0,109100.0,0.09915799]
[1751501850483,0.29010885,109110.0,109100.0,0.09915799]
[1751501850776,0.29010877,109110.0,109100.0,0.09915799]
[1751501850990,0.29927341,109110.0,109100.0,0.09915799]
[1751501851338,0.23704,109110.0,109100.0,0.09915799]
[1751501851575,0.23704,109110.0,109100.0,0.06248004]
[1751501852413,0.23704,109110.0,109100.0,0.09748004]
[1751501852613,0.23704,109110.0,109100.0,0.29912972]
[1751501852885,0.23704,109110.0,109100.0,0.24409886]
[1751501853117,0.23704,109110.0,109100.0,0.26243007]
[1751501853326,0.23704,109110.0,109100.0,0.25326451]
[1751501853670,0.23704,109110.0,109100.0,0.3356879]
[1751501853874,0.23704,109110.0,109100.0,0.31735669]
[1751501854117,0.23704,109110.0,109100.0,0.30819096]
[1751501854318,0.23704,109110.0,109100.0,0.31735677]
[1751501855553,0.23704,109110.0,109100.0,0.3265225]
[1751501856168,0.23704,109110.0,109100.0,0.31735677]
[1751501857071,0.23704,109110.0,109100.0,0.3265225]
[1751501857305,0.0022,109110.0,109100.0,0.34485329]
[1751501857521,0.19052,109110.0,109100.0,0.43761337]
[1751501857732,0.0022,109110.0,109100.0,0.43761337]
[1751501857943,0.19052,109110.0,109100.0,0.43761337]
[1751501859274,0.19052,109110.0,109100.0,0.43761345]
[1751501859625,0.19052,109110.0,109100.0,0.43761286]
[1751501860514,0.19052,109110.0,109100.0,0.42844755]
[1751501861417,0.19052,109110.0,109100.0,0.41928216]
[1751501863673,0.19052,109110.0,109100.0,0.41927558]
[1751501863871,0.19052,109110.0,109100.0,0.4101101]
[1751501864080,0.19052,109110.0,109100.0,0.41927575]
[1751501864540,0.0022,109110.0,109100.0,0.4101101]
[1751501864747,0.19052,109110.0,109100.0,0.4101101]
[1751501865851,0.19052,109110.0,109100.0,0.20846051]
[1751501865981,0.19052,109110.0,109100.0,0.17346051]
[1751501868846,0.19052,109110.0,109100.0,0.18262641]
[1751501869282,0.19052,109110.0,109100.0,0.17346051]
[1751501870415,0.19052,109110.0,109100.0,0.18262641]
[1751501870629,0.19052,109110.0,109100.0,0.19179214]
[1751501870839,0.19052,109110.0,109100.0,0.19179222]
[1751501871047,0.19052,109110.0,109100.0,0.17346051]
[1751501872110,0.19052,109110.0,109100.0,0.18262641]
[1751501872571,0.19052,109110.0,109100.0,0.19179214]
[1751501872756,0.19052,109110.0,109100.0,0.19179222]
[1751501872896,0.19052,109110.0,109100.0,0.19179177]
[1751501873092,0.19052,109110.0,109100.0,0.18262596]
[1751501873505,0.19052,109110.0,109100.0,0.17346006]
[1751501874620,0.19052,109110.0,109100.0,0.18262596]
[1751501874829,0.19052,109110.0,109100.0,0.37510974]
[1751501875056,0.19052,109110.0,109100.0,0.18262596]
[1751501875474,0.19052,109110.0,109100.0,0.19179177]
[1751501876269,0.19052,109110.0,109100.0,0.17346006]
[1751501876798,0.19052,109110.0,109100.0,0.18262596]
[1751501877384,0.19052,109110.0,109100.0,0.17346006]
[1751501877589,0.19052,109110.0,109100.0,0.18262596]
[1751501877792,0.19052,109110.0,109100.0,0.17346006]
[1751501878765,0.19052,109110.0,109100.0,0.18262596]
[1751501879945,0.19052,109110.0,109100.0,0.19179177]
[1751501880943,0.19052,109110.0,109100.0,0.37510982]
[1751501881101,0.19052,109110.0,109100.0,0.39344086]
[1751501881299,0.19052,109110.0,109100.0,0.41758204]
[1751501881506,0.19052,109110.0,109100.0,0.42674752]
[1751501881915,0.0022,109110.0,109100.0,0.41758204]
[1751501882118,0.19044,109110.0,109100.0,0.41758204]
[1751501882750,0.19044,109110.0,109100.0,0.42674752]
[1751501883516,0.19044,109110.0,109100.0,0.41758204]
[1751501883727,0.19044,109110.0,109100.0,0.41758213]
[1751501884128,0.19044,109110.0,109100.0,0.41758429]
[1751501884355,0.19044,109110.0,109100.0,0.42674985]
[1751501884564,0.19044,109110.0,109100.0,0.41758429]
[1751501884758,0.19044,109110.0,109100.0,0.41758437]
[1751501884901,0.19044,109110.0,109100.0,0.40841864]
[1751501885959,0.19044,109110.0,109100.0,0.41758437]
[1751501886399,0.19044,109110.0,109100.0,0.18263478]
[1751501886820,0.19044,109110.0,109100.0,0.17346888]
[1751501886998,0.19044,109110.0,109100.0,0.18263469]
[1751501887661,0.19044,109110.0,109100.0,0.19180042]
[1751501887863,0.19044,109110.0,109100.0,0.37511847]
[1751501888070,0.19044,109110.0,109100.0,0.36595274]
[1751501888276,0.19044,109110.0,109100.0,0.37511839]
[1751501888483,0.19044,109110.0,109100.0,0.37511847]
[1751501889273,0.19044,109110.0,109100.0,0.36595274]
[1751501890699,0.19044,109110.0,109100.0,0.37511847]
[1751501890903,0.19044,109110.0,109100.0,0.3934496]
[1751501891133,0.19044,109110.0,109100.0,0.4273496]
[1751501891494,0.19044,109110.0,109100.0,0.43651499]
[1751501891857,0.19044,109110.0,109100.0,0.43651507]
[1751501892034,0.0022,109110.0,109100.0,0.42734968]
[1751501892335,0.0022,109110.0,109100.0,0.44455214]
[1751501892535,0.0022,109110.0,109100.0,0.45371762]
[1751501892735,0.0022,109110.0,109100.0,0.44455214]
[1751501892937,0.0022,109110.0,109100.0,0.43538658]
[1751501894270,0.0022,109110.0,109100.0,0.44455214]
[1751501895408,0.0022,109110.0,109100.0,0.45371703]
[1751501895613,0.0022,109110.0,109100.0,0.44455172]
[1751501895813,0.0022,109110.0,109100.0,0.44455181]
[1751501896290,0.0022,109110.0,109100.0,0.42745181]
[1751501896826,0.0022,109110.0,109100.0,0.4366172]
[1751501897414,0.0022,109110.0,109100.0,0.4198172]
[1751501897618,0.0022,109110.0,109100.0,0.41065147]
[1751501897830,0.0022,109110.0,109100.0,0.41981678]
[1751501899728,0.0022,109110.0,109100.0,0.41065147]
[1751501900348,0.0022,109110.0,109100.0,0.41981678]
[1751501900799,0.0022,109110.0,109100.0,0.41065147]
[1751501901043,0.0022,109110.0,109100.0,0.40148608]
[1751501901289,0.0022,109110.0,109100.0,0.38315529]
[1751501901522,0.0022,109110.0,109100.0,0.39232102]
[1751501901760,0.0022,109110.0,109100.0,0.40148667]
[1751501902422,0.0022,109110.0,109100.0,0.19983724]
[1751501902642,0.0199,109110.0,109100.0,0.20900297]
[1751501902862,0.0362,109110.0,109100.0,0.21816806]
[1751501903505,0.0199,109110.0,109100.0,0.40148611]
[1751501903725,0.0199,109110.0,109100.0,0.39232038]
[1751501904167,0.0199,109110.0,109100.0,0.19067062]
[1751501904423,0.06541086,109110.0,109100.0,0.09791054]
[1751501904637,0.07457567,109110.0,109100.0,0.09791054]
[1751501904851,0.06541086,109110.0,109100.0,0.09791054]
[1751501905074,0.07457567,109110.0,109100.0,0.09791054]
[1751501905973,0.07457567,109110.0,109100.0,0.09790887]
[1751501906413,0.07457567,109110.0,109100.0,0.02465104]
[1751501906597,0.07457558,109110.0,109100.0,0.07968302]
[1751501909465,0.08374039,109110.0,109100.0,0.07968302]
[1751501910303,0.08374106,109110.0,109100.0,0.07968302]
[1751501910522,0.62325399,109110.0,109100.0,0.07968302]
[1751501910738,0.67059136,109110.0,109100.0,0.12495349]
[1751501910945,0.67059136,109110.0,109100.0,0.09743071]
[1751501911155,0.67059136,109110.0,109100.0,0.06075423]
[1751501911367,0.69814736,109110.0,109100.0,0.06075554]
[1751501911799,0.84814736,109110.0,109100.0,0.03324503]
[1751501912255,0.84814736,109110.0,109100.0,0.033241]
[1751501916303,1.06838736,109110.0,109100.0,0.033241]
[1751501917185,1.32568829,109110.0,109100.0,0.02679242]
[1751501917401,1.32568829,109110.0,109100.0,0.001]
[1751501919180,0.54166775,109090.0,109080.0,0.02397688]
[1751501919422,0.90324783,109090.0,109080.0,0.03254589]
[1751501920111,0.93080883,109090.0,109080.0,0.03254589]
[1751501920759,0.93080883,109090.0,109080.0,0.02397688]
[1751501920969,0.93080883,109090.0,109080.0,0.00683218]
[1751501921190,0.93080883,109090.0,109080.0,0.0014]
[1751501922044,0.93080883,109090.0,109080.0,0.0034]
[1751501922939,0.93080883,109090.0,109080.0,0.0004]
[1751501923365,0.93180883,109090.0,109080.0,0.0004]
[1751501925785,0.92264251,109090.0,109080.0,0.0004]
[1751501931212,1.01540259,109090.0,109080.0,0.0004]
[1751501931482,1.16540259,109090.0,109080.0,0.0004]
[1751501931706,1.19062944,109090.0,109080.0,0.0004]
[1751501931923,1.16540259,109090.0,109080.0,0.0004]
[1751501934301,1.07264251,109090.0,109080.0,0.0004]
[1751501939957,1.07264251,109090.0,109080.0,0.00898033]
[1751501943043,1.07304251,109090.0,109080.0,0.00898033]
[1751501945970,1.07304251,109090.0,109080.0,0.02617107]
[1751501946192,1.07304251,109090.0,109080.0,0.00898033]
[1751501946628,1.07304251,109090.0,109080.0,0.03640722]
[1751501948053,1.07304251,109090.0,109080.0,0.04286028]
[1751501948262,1.07304251,109090.0,109080.0,0.03640722]
[1751501948474,1.08036251,109090.0,109080.0,0.03640722]
[1751501948690,1.06296251,109090.0,109080.0,0.03640722]
[1751501948919,1.06296251,109090.0,109080.0,0.03643113]
[1751501948920,1.08096251,109090.0,109080.0,0.03643113]
[1751501949850,1.08096251,109090.0,109080.0,0.04288448]
[1751501950524,0.80422251,109090.0,109080.0,0.04288448]
[1751501950736,1.04618251,109090.0,109080.0,0.04288448]
[1751501951196,0.90530883,109090.0,109080.0,0.07698448]
[1751501951413,0.87774783,109090.0,109080.0,0.07698448]
[1751501951801,0.87774783,109090.0,109080.0,0.11366096]
[1751501952061,0.87774783,109090.0,109080.0,0.11365951]
[1751501953065,0.87774783,109090.0,109080.0,0.105056]
[1751501953271,0.87774783,109090.0,109080.0,0.06837952]
[1751501953690,0.86858151,109090.0,109080.0,0.06837952]
[1751501956002,0.86858151,109090.0,109080.0,0.105056]
[1751501957684,0.85941494,109090.0,109080.0,0.105056]
[1751501958099,0.85941494,109090.0,109080.0,0.10505235]
[1751501958510,0.85941494,109090.0,109080.0,0.04094898]
[1751501958715,0.85941494,109090.0,109080.0,0.02414898]
[1751501958922,0.85941494,109090.0,109080.0,0.00684898]
[1751501964148,0.85941494,109090.0,109080.0,0.00684733]
[1751501965452,0.87571494,109090.0,109080.0,0.00684733]
[1751501966295,0.89321494,109090.0,109080.0,0.00684733]
[1751501966724,0.92077694,109090.0,109080.0,0.00684733]
[1751501967177,0.92077694,109090.0,109080.0,0.01544432]
[1751501968458,1.07077694,109090.0,109080.0,0.01544432]
[1751501969703,1.23431779,109090.0,109080.0,0.01544432]
[1751501969939,1.75884464,109090.0,109080.0,0.0004]
[1751501970162,6.39034773,109090.0,109080.0,1e-08]
[1751501970381,6.36512088,109090.0,109080.0,1e-08]
[1751501970822,6.38951679,109090.0,109080.0,1e-08]
[1751501971039,6.48027687,109090.0,109080.0,1e-08]
[1751501971268,6.48527687,109090.0,109080.0,1e-08]
[1751501971479,6.51050372,109090.0,109080.0,1e-08]
[1751501971700,6.46050372,109090.0,109080.0,1e-08]
[1751501971977,6.51050372,109090.0,109080.0,1e-08]
[1751501972418,6.50850372,109090.0,109080.0,1e-08]
[1751501972815,0.56811907,109080.0,109070.0,0.0004]
[1751501973062,0.94631923,109080.0,109070.0,0.0004]
[1751501974027,1.44361923,109080.0,109070.0,0.0004]
[1751501975818,1.44561923,109080.0,109070.0,0.0014]
[1751501977291,1.46016008,109080.0,109070.0,0.0014]
[1751501977907,1.46383608,109080.0,109070.0,0.0014]
[1751501989701,0.90700442,109070.0,109060.0,0.0004]
[1751501989913,1.28440458,109070.0,109060.0,0.00044671]
[1751501990353,0.58149523,109060.0,109050.0,0.0002]
[1751501990566,1.13501531,109060.0,109050.0,0.00066752]
[1751501990780,1.22777537,109060.0,109050.0,0.00066752]
[1751501991002,1.22777537,109060.0,109050.0,1e-08]
[1751501991225,6.35534837,109060.0,109050.0,1e-08]
[1751501991440,0.84713054,109040.0,109030.0,0.0004]
[1751501991659,1.25630367,109040.0,109030.0,0.00052801]
[1751501991880,1.28210676,109040.0,109030.0,0.00052801]
[1751501992305,1.30968576,109040.0,109030.0,0.00052801]
[1751501992927,1.28388267,109040.0,109030.0,0.00052801]
[1751501994635,1.28488267,109040.0,109030.0,0.00052801]
[1751501995754,1.28488267,109040.0,109030.0,0.00252801]
[1751502000460,6.36068576,109040.0,109030.0,0.00252801]
[1751502000668,5.63134821,109030.0,109020.0,0.0004]
[1751502000875,6.05670837,109030.0,109020.0,0.0004]
[1751502001090,6.08251146,109030.0,109020.0,0.0004]
[1751502001533,6.08618946,109030.0,109020.0,0.0004]
[1751502001951,5.72778629,109030.0,109020.0,0.0004]
[1751502002164,0.88422629,109030.0,109020.0,0.0004]
[1751502002593,0.64358629,109030.0,109020.0,0.0004]
[1751502002826,0.88842629,109030.0,109020.0,0.0353]
[1751502003032,0.87388544,109030.0,109020.0,0.0353]
[1751502003458,0.54333697,109030.0,109020.0,0.05242249]
[1751502003667,0.54333697,109030.0,109020.0,0.06098301]
[1751502003897,0.06484928,109030.0,109020.0,0.06098301]
[1751502004107,0.46703874,109030.0,109020.0,0.05242249]
[1751502004337,0.4449789,109030.0,109020.0,0.05242249]
[1751502004546,0.60154315,109030.0,109020.0,0.05242062]
[1751502004757,0.60254315,109030.0,109020.0,0.05242062]
[1751502004969,0.003,109030.0,109020.0,0.05242062]
[1751502005182,0.051,109030.0,109020.0,0.13458245]
[1751502005401,0.001,109030.0,109020.0,0.32720747]
[1751502005613,0.2422,109030.0,109020.0,0.33637976]
[1751502005822,0.24224,109030.0,109020.0,0.34555188]
[1751502006032,0.05,109030.0,109020.0,0.34555196]
[1751502006240,0.19424,109030.0,109020.0,0.35472408]
[1751502006676,0.19424,109030.0,109020.0,0.35672357]
[1751502006886,0.04814104,109040.0,109030.0,0.22730745]
[1751502007100,0.04814104,109040.0,109030.0,0.26277071]
[1751502007313,0.24138104,109040.0,109030.0,0.25259952]
[1751502007576,0.04814104,109040.0,109030.0,0.25259952]
[1751502007785,0.24134104,109040.0,109030.0,0.25259952]
[1751502007991,0.24134104,109040.0,109030.0,0.25259968]
[1751502008201,0.24134104,109040.0,109030.0,0.26177113]
[1751502008408,0.24234104,109040.0,109030.0,0.25106892]
[1751502008614,0.24234104,109040.0,109030.0,0.26024028]
[1751502008841,0.24134104,109040.0,109030.0,0.251069]
[1751502009046,0.24134104,109040.0,109030.0,0.26224028]
[1751502009272,0.24134104,109040.0,109030.0,0.26224036]
[1751502009475,0.24134104,109040.0,109030.0,0.24389747]
[1751502009687,0.24134104,109040.0,109030.0,0.23472586]
[1751502010135,0.24134104,109040.0,109030.0,0.0604618]
[1751502010349,0.04914104,109040.0,109030.0,0.35829277]
[1751502010583,0.04914104,109040.0,109030.0,0.35599983]
[1751502010794,0.04914104,109040.0,109030.0,0.36517111]
[1751502011005,0.04914104,109040.0,109030.0,0.3926764]
[1751502011222,0.04914104,109040.0,109030.0,0.39267648]
[1751502011484,0.04914104,109040.0,109030.0,0.37708715]
[1751502011698,0.04914104,109040.0,109030.0,0.17530826]
[1751502012139,0.04914104,109040.0,109030.0,0.18447987]
[1751502012561,0.04914104,109040.0,109030.0,0.37708715]
[1751502012778,0.04914104,109040.0,109030.0,0.3862586]
[1751502012993,0.04914104,109040.0,109030.0,0.16613656]
[1751502013430,0.04914104,109040.0,109030.0,0.12946008]
[1751502014104,0.04914104,109040.0,109030.0,0.13863186]
[1751502014317,0.04914104,109040.0,109030.0,0.14780356]
[1751502014743,0.04914104,109040.0,109030.0,0.15697509]
[1751502014952,0.04914104,109040.0,109030.0,0.34041084]
[1751502015167,0.04914104,109040.0,109030.0,0.34041092]
[1751502015407,0.04914104,109040.0,109030.0,0.33123931]
[1751502015638,0.04914104,109040.0,109030.0,0.34041092]
[1751502015843,0.04914104,109040.0,109030.0,0.34958245]
[1751502016066,0.04914104,109040.0,109030.0,0.35875297]
[1751502016285,0.04914104,109040.0,109030.0,0.35875306]
[1751502016502,0.04914104,109040.0,109030.0,0.36791545]
[1751502017173,0.04914104,109040.0,109030.0,0.37708681]
[1751502017429,0.04914104,109040.0,109030.0,0.38625809]
[1751502017868,0.04914104,109040.0,109030.0,0.39542928]
[1751502018341,0.04914104,109040.0,109030.0,0.37708681]
[1751502018564,0.04914104,109040.0,109030.0,0.38625826]
[1751502018783,0.04914104,109040.0,109030.0,0.36791545]
[1751502019217,0.04914104,109040.0,109030.0,0.35874392]
[1751502019440,0.04914104,109040.0,109030.0,0.36791537]
[1751502019664,0.04914104,109040.0,109030.0,0.35874401]
[1751502019884,0.04914104,109040.0,109030.0,0.37708715]
[1751502020321,0.04914104,109040.0,109030.0,0.34041067]
[1751502020567,0.04914104,109040.0,109030.0,0.13863186]
[1751502020794,0.04914104,109040.0,109030.0,0.12946008]
[1751502022355,0.06748166,109040.0,109030.0,0.12946008]
[1751502022790,0.06002875,109040.0,109030.0,0.0367]
[1751502023003,0.05831122,109040.0,109030.0,0.0367]
[1751502023237,0.0691991,109040.0,109030.0,0.0367]
[1751502023444,0.07836971,109040.0,109030.0,0.0367]
[1751502023861,0.0691991,109040.0,109030.0,0.0367]
[1751502025913,0.07836954,109040.0,109030.0,0.0367]
[1751502026121,0.0691991,109040.0,109030.0,0.0367]
[1751502026554,0.00285857,109040.0,109030.0,0.0367]
[1751502026772,0.19418104,109040.0,109030.0,0.0367]
[1751502027036,0.20335131,109040.0,109030.0,0.0367]
[1751502027249,0.20335139,109040.0,109030.0,0.0367]
[1751502027676,0.19418104,109040.0,109030.0,0.0367]
[1751502027891,0.21252166,109040.0,109030.0,0.0367]
[1751502028327,0.21252166,109040.0,109030.0,0.07337648]
[1751502028556,0.21252166,109040.0,109030.0,0.0367]
[1751502028998,0.23086295,109040.0,109030.0,0.0367]
[1751502029220,0.42345281,109040.0,109030.0,0.003]
[1751502029441,0.40511219,109040.0,109030.0,0.003]
[1751502032550,0.40511219,109040.0,109030.0,0.03967648]
[1751502033395,0.42251219,109040.0,109030.0,0.03967648]
[1751502034049,0.43074167,109040.0,109030.0,0.03967648]
[1751502034254,0.86350175,109040.0,109030.0,0.03967648]
[1751502034467,0.86350175,109040.0,109030.0,0.003]
[1751502038711,0.82870175,109040.0,109030.0,0.00944463]
[1751502040033,0.82870175,109040.0,109030.0,0.00944402]
[1751502040854,0.64528283,109040.0,109030.0,0.00944402]
[1751502041066,0.82870175,109040.0,109030.0,0.00944402]
[1751502041485,0.82870175,109040.0,109030.0,0.00964402]
[1751502041608,0.82910175,109040.0,109030.0,0.00964402]
[1751502041818,0.86190175,109040.0,109030.0,0.00964402]
[1751502042026,0.85273098,109040.0,109030.0,0.00964402]
[1751502043086,0.84356004,109040.0,109030.0,0.00964402]
[1751502043924,0.84356004,109040.0,109030.0,0.00964266]
[1751502046069,0.82706004,109040.0,109030.0,0.00964266]
[1751502048959,0.81993081,109040.0,109030.0,0.00964266]
[1751502050255,0.84698281,109040.0,109030.0,0.00964266]
[1751502051199,0.37828356,109040.0,109030.0,0.00964266]
[1751502051429,0.82112352,109040.0,109030.0,0.00964266]
[1751502052279,0.81195325,109040.0,109030.0,0.00964266]
[1751502053162,0.82008273,109040.0,109030.0,0.00964266]
[1751502054698,0.83698273,109040.0,109030.0,0.00964266]
[1751502054920,0.83698273,109040.0,109030.0,0.0032]
[1751502057307,0.83698273,109040.0,109030.0,0.03987648]
[1751502059711,0.82781196,109040.0,109030.0,0.03987648]
[1751502060991,0.92057204,109040.0,109030.0,0.0032]
[1751502064637,0.92057204,109040.0,109030.0,0.00965431]
[1751502064849,0.92057204,109040.0,109030.0,0.0032]
[1751502066842,0.92057204,109040.0,109030.0,0.00965426]
[1751502067052,0.92057204,109040.0,109030.0,0.0032]
[1751502068575,0.92057204,109040.0,109030.0,0.02686564]
[1751502069003,0.92057204,109040.0,109030.0,0.00965426]
[1751502069907,0.90323204,109040.0,109030.0,0.00965426]
[1751502070123,0.88593204,109040.0,109030.0,0.00965426]
[1751502070779,0.64529204,109040.0,109030.0,0.00965426]
[1751502070996,0.91312394,109040.0,109030.0,0.00965426]
[1751502071218,0.39662477,109040.0,109030.0,0.04325426]
[1751502071433,0.35071131,109040.0,109030.0,0.07993074]
[1751502071656,0.59107131,109040.0,109030.0,0.07993074]
[1751502071939,0.59107131,109040.0,109030.0,0.09713549]
[1751502072358,0.60024175,109040.0,109030.0,0.09713544]
[1751502073679,0.60941236,109040.0,109030.0,0.09713544]
[1751502073905,0.62775407,109040.0,109030.0,0.09713544]
[1751502074344,0.61858313,109040.0,109030.0,0.09713544]
[1751502077714,0.62775407,109040.0,109030.0,0.09713544]
[1751502077927,0.61858313,109040.0,109030.0,0.09713544]
[1751502078570,0.61858313,109040.0,109030.0,0.0971313]
[1751502079426,0.60024175,109040.0,109030.0,0.0971313]
[1751502079640,0.60941236,109040.0,109030.0,0.0971313]
[1751502079875,0.61858313,109040.0,109030.0,0.0971313]
[1751502080089,0.80200272,109040.0,109030.0,0.0971313]
[1751502081619,0.80200272,109040.0,109030.0,0.0635313]
[1751502081620,0.78366167,109040.0,109030.0,0.0635313]
[1751502081855,0.78366167,109040.0,109030.0,0.02685482]
[1751502083539,0.81766167,109040.0,109030.0,0.02685482]
[1751502084043,0.93799375,109040.0,109030.0,0.02685482]
[1751502084795,1.18075383,109040.0,109030.0,0.0268502]
[1751502085011,1.08799375,109040.0,109030.0,0.0268502]
[1751502086095,1.12776145,109040.0,109030.0,0.0268502]
[1751502086317,1.1525346,109040.0,109030.0,0.0032]
[1751502086535,0.71620736,109030.0,109020.0,0.0004]
[1751502086750,0.80896744,109030.0,109020.0,0.0004]
[1751502087816,0.80996744,109030.0,109020.0,0.0004]
[1751502088036,0.81096744,109030.0,109020.0,0.0004]
[1751502088697,0.83789814,109030.0,109020.0,0.0004]
[1751502088919,0.93065822,109030.0,109020.0,0.0004]
[1751502089572,0.83789814,109030.0,109020.0,0.0004]
[1751502090251,1.02941814,109030.0,109020.0,0.0004]
[1751502092949,1.03309514,109030.0,109020.0,0.0004]
[1751502095307,1.03209514,109030.0,109020.0,0.0004]
[1751502095521,1.03709514,109030.0,109020.0,0.0014]
[1751502095737,1.12985522,109030.0,109020.0,0.0014]
[1751502097459,1.17985522,109030.0,109020.0,0.0014]
[1751502098964,1.17885522,109030.0,109020.0,0.0014]
[1751502099190,6.18185522,109030.0,109020.0,0.0014]
[1751502100740,6.23185522,109030.0,109020.0,0.0014]
[1751502101688,6.18185522,109030.0,109020.0,0.0014]
[1751502101906,6.23185522,109030.0,109020.0,0.0014]
[1751502103431,6.20765831,109030.0,109020.0,0.0014]
[1751502103648,6.25765831,109030.0,109020.0,0.0014]
[1751502104368,0.15917246,109020.0,109010.0,0.0004]
[1751502104586,1.64284272,109020.0,109010.0,0.0004]